bitfinex/quotes_ETHUSD_20241001
["timestamp","ask_amount","ask_price","bid_price","bid_amount"]
[1727810684443,4.78918,2505.7,2505.0,4.7903]
[1727810684444,0.7771,2505.7,2505.2,4.78986]
[1727810684663,0.7771,2505.7,2505.2,5.747877]
[1727810684880,0.7771,2505.7,2505.2,4.78986]
[1727810685090,19.40660897,2505.6,2505.3,3.0]
[1727810685294,19.40660897,2505.6,2505.4,4.78964]
[1727810686135,19.40660897,2505.6,2505.4,4.78954]
[1727810686343,19.40660897,2505.6,2505.5,4.78946]
[1727810686587,19.40660897,2505.6,2505.5,6.04736]
[1727810688156,7.38,2506.1,2505.7,4.78893]
[1727810688402,20.21440897,2506.3,2505.9,4.78869]
[1727810688599,20.21440897,2506.3,2505.7,4.78893]
[1727810688600,25.00242897,2506.3,2505.8,4.78879]
[1727810688825,20.21440897,2506.3,2505.9,4.78868]
[1727810689324,25.00242897,2506.3,2505.9,4.78868]
[1727810689535,0.55,2506.2,2505.6,4.78927]
[1727810689739,5.33813,2506.2,2505.7,4.7889]
[1727810689930,5.33813,2506.2,2505.8,4.78887]
[1727810691040,5.33813,2506.2,2505.7,4.78905]
[1727810691849,6.14314,2506.0,2505.1,0.8214]
[1727810692049,5.33904,2505.8,2505.4,3.0]
[1727810692261,5.33904,2505.8,2505.1,4.79009]
[1727810692466,5.60814,2505.5,2505.0,4.7903]
[1727810692819,4.78965,2505.4,2505.0,4.7903]
[1727810693027,19.40660897,2505.4,2505.1,4.79017]
[1727810694234,19.40660897,2505.4,2505.1,4.79021]
[1727810696628,19.40660897,2505.4,2505.1,4.79014]
[1727810696840,19.40660897,2505.4,2505.1,4.79012]
[1727810697345,19.40660897,2505.4,2505.1,9.58025]
[1727810697536,19.40660897,2505.4,2505.1,4.79012]
[1727810697968,19.40660897,2505.4,2505.2,4.78992]
[1727810698633,19.40660897,2505.4,2505.2,4.79002]
[1727810698826,0.8186,2505.5,2505.2,4.79002]
[1727810699375,0.8186,2505.5,2505.0,4.79028]
[1727810699376,0.8186,2505.5,2505.1,4.79014]
[1727810699531,4.78965,2505.4,2505.0,4.79028]
[1727810699957,8.1095289,2505.5,2505.0,4.79027]
[1727810700154,5.60808,2505.5,2505.0,4.79027]
[1727810700373,5.60808,2505.5,2505.2,4.78988]
[1727810700374,0.8186,2505.5,2505.2,4.78988]
[1727810700534,0.8186,2505.5,2505.1,4.79014]
[1727810700848,5.33979,2505.4,2504.9,4.7905]
[1727810701246,5.33979,2505.4,2505.0,4.79036]
[1727810701784,0.06009308,2505.3,2505.2,4.79003]
[1727810702080,19.40660897,2505.7,2505.1,5.58331]
[1727810702262,0.7562,2505.8,2505.6,4.78911]
[1727810702462,0.808,2506.1,2505.9,4.78853]
[1727810702758,0.808,2506.1,2505.6,0.478911]
[1727810702759,0.808,2506.1,2505.6,5.268151]
[1727810702965,6.55262401,2506.1,2505.0,1.745886]
[1727810703138,7.38,2506.3,2504.8,3.7878]
[1727810703139,0.808,2505.6,2504.8,3.7878]
[1727810703337,0.808,2505.6,2505.1,4.79013]
[1727810703672,4.78965,2505.4,2504.9,9.581]
[1727810703876,0.55,2505.3,2505.1,4.79014]
[1727810704261,0.55,2505.3,2505.0,4.79039]
[1727810704460,0.55,2505.3,2505.0,4.79032]
[1727810704837,0.55,2505.3,2504.9,4.7906]
[1727810705187,20.21430897,2505.2,2504.4,0.7957]
[1727810705385,20.21430897,2505.2,2505.1,4.79022]
[1727810705386,19.40660897,2505.2,2505.1,4.79022]
[1727810707577,0.8105,2505.9,2505.7,4.78892]
[1727810707977,5.59936,2505.9,2505.2,4.79003]
[1727810708183,5.59936,2505.9,2505.4,4.78958]
[1727810708494,5.59936,2505.9,2505.5,4.78944]
[1727810708495,0.8105,2505.9,2505.5,4.78944]
[1727810708653,0.8105,2505.9,2505.5,0.478944]
[1727810708866,0.8105,2505.9,2505.7,4.78892]
[1727810709594,0.8105,2505.9,2505.7,9.57791]
[1727810709782,19.40660897,2506.1,2505.8,4.78878]
[1727810710183,19.40660897,2506.1,2505.5,4.78936]
[1727810710184,4.78851,2506.0,2505.5,4.78936]
[1727810710367,0.55,2505.9,2505.5,4.78936]
[1727810710759,0.7572,2505.8,2505.3,4.78971]
[1727810711100,0.7572,2506.0,2505.6,4.78918]
[1727810711301,0.7572,2506.0,2505.6,4.78915]
[1727810712092,5.54571,2506.0,2505.6,4.78915]
[1727810712301,0.7572,2506.0,2505.7,4.78905]
[1727810712792,0.7572,2506.0,2505.6,4.78925]
[1727810713499,5.54577,2506.0,2505.6,4.78924]
[1727810713793,24.95237897,2506.0,2505.6,4.78924]
[1727810713994,20.16380897,2506.0,2505.6,4.78924]
[1727810715615,20.16380897,2506.0,2505.5,4.78936]
[1727810715616,0.55,2505.9,2505.5,4.78936]
[1727810715816,4.7889,2505.8,2505.4,4.78964]
[1727810716396,5.3387,2505.9,2505.4,4.78964]
[1727810716592,0.05892465,2505.7,2505.4,4.78964]
[1727810716924,0.05886274,2505.6,2505.4,9.57921]
[1727810717078,5.3387,2505.9,2505.4,9.57921]
[1727810717284,0.05895089,2505.8,2505.5,4.78938]
[1727810717687,0.05895089,2505.8,2505.7,4.78908]
[1727810717882,19.40660897,2506.0,2505.7,4.78908]
[1727810718118,19.40660897,2506.0,2505.9,4.78869]
[1727810718325,19.40660897,2506.0,2505.6,0.88101053]
[1727810718326,19.40660897,2506.4,2506.3,4.78793]
[1727810718511,19.40660897,2506.4,2506.2,4.78812]
[1727810718512,19.40660897,2506.8,2506.6,4.78727]
[1727810718682,0.802,2506.9,2506.6,4.78727]
[1727810719028,0.802,2506.9,2506.7,4.78706]
[1727810719183,0.802,2506.9,2506.5,4.78744]
[1727810719184,0.802,2506.9,2506.6,4.78734]
[1727810719814,19.40660897,2507.0,2506.7,4.78703]
[1727810720015,0.7565,2507.2,2506.4,4.78768]
[1727810720227,19.40660897,2507.4,2506.6,0.7981]
[1727810720382,4.78603,2507.3,2506.6,0.7981]
[1727810720584,4.78603,2507.3,2506.8,4.78688]
[1727810720811,4.78644,2507.1,2506.7,4.78713]
[1727810721126,0.8265,2507.0,2506.7,4.78713]
[1727810721332,20.23310897,2507.0,2506.3,3.7819]
[1727810721480,20.23310897,2507.0,2506.1,4.78817]
[1727810721481,4.78718,2506.7,2506.1,4.78817]
[1727810721684,0.8265,2506.5,2506.1,4.78817]
[1727810722712,19.40660897,2506.7,2506.3,4.78792]
[1727810723226,19.40660897,2506.7,2506.3,9.57571]
[1727810723422,19.40660897,2506.7,2506.1,0.557007]
[1727810723423,19.40660897,2506.7,2506.4,4.78773]
[1727810723806,19.40660897,2506.7,2506.5,4.78746]
[1727810724006,19.40660897,2506.7,2506.6,4.78736]
[1727810724703,19.40660897,2506.7,2506.6,5.825272]
[1727810725208,7.38,2507.3,2506.9,4.78676]
[1727810725209,19.40660897,2507.3,2506.9,4.78676]
[1727810726295,19.40660897,2507.5,2507.2,4.78621]
[1727810726499,19.40660897,2507.5,2507.1,4.78624]
[1727810726702,19.40660897,2507.5,2507.1,9.57253]
[1727810726929,19.40660897,2507.5,2507.1,4.78624]
[1727810728224,19.40660897,2507.5,2507.1,5.818748]
[1727810728388,19.40660897,2507.5,2507.1,5.818908]
[1727810728584,19.40660897,2507.5,2507.1,4.7864]
[1727810729124,19.40660897,2507.5,2507.2,4.78612]
[1727810729295,19.40660897,2507.5,2507.2,4.78615]
[1727810730189,24.19226897,2507.5,2507.0,0.7522]
[1727810730429,5.61823,2507.3,2506.8,4.78682]
[1727810730591,5.61837,2507.3,2506.8,4.78682]
[1727810730789,4.78583,2507.4,2506.8,4.78682]
[1727810730997,19.40660897,2507.5,2507.0,4.78646]
[1727810731291,19.40660897,2507.4,2507.0,4.78646]
[1727810731491,0.04886389,2507.3,2507.0,4.78646]
[1727810731917,0.04886389,2507.3,2507.1,4.78628]
[1727810732122,0.04886389,2507.3,2507.2,4.78621]
[1727810732391,0.04886389,2507.3,2507.2,5.60231]
[1727810732824,0.04886389,2507.3,2507.2,11.13507399]
[1727810732989,19.40660897,2508.0,2507.7,4.78511]
[1727810733195,0.7607,2508.0,2507.6,4.78536]
[1727810733809,0.7607,2508.0,2507.5,4.78548]
[1727810734004,0.7607,2508.0,2507.6,4.78543]
[1727810734225,0.7607,2508.0,2507.5,4.78548]
[1727810734533,0.7607,2508.0,2507.2,4.78609]
[1727810734534,5.33499,2507.9,2507.2,4.78609]
[1727810734737,5.33499,2507.9,2506.2,5.74462401]
[1727810734738,5.33554,2507.6,2506.8,4.78686]
[1727810734909,5.33554,2507.6,2506.7,0.8263]
[1727810734910,20.20150897,2507.5,2507.1,4.78629]
[1727810735495,20.20150897,2507.5,2506.7,0.8263]
[1727810735699,20.20150897,2507.5,2507.2,4.78621]
[1727810736725,20.20150897,2507.5,2507.2,4.78613]
[1727810736922,19.40660897,2507.5,2507.4,4.78583]
[1727810737273,19.40660897,2507.6,2507.4,4.78583]
[1727810737406,19.40660897,2507.6,2507.5,4.78564]
[1727810737795,0.8007,2508.0,2507.8,4.78505]
[1727810738000,0.8007,2508.0,2507.8,4.78497]
[1727810738244,20.20730897,2508.3,2507.9,4.78487]
[1727810738455,0.8007,2508.3,2508.1,4.7844]
[1727810738598,19.40660897,2508.4,2508.1,4.7844]
[1727810738800,19.40660897,2508.4,2507.9,0.7802]
[1727810739113,19.40660897,2508.4,2508.2,4.78422]
[1727810739515,19.40660897,2508.4,2508.1,4.78431]
[1727810739698,19.40660897,2508.4,2508.3,4.78411]
[1727810740105,0.1242075,2508.5,2508.4,5.60842]
[1727810742216,0.1242075,2508.5,2508.4,8.60842]
[1727810745446,19.9306,2510.2,2509.7,4.78142]
[1727810745447,0.8287,2510.0,2509.7,4.78142]
[1727810745647,0.8287,2510.0,2509.7,4.78129]
[1727810745802,19.53,2510.6,2509.8,4.78125]
[1727810745803,0.04450809,2509.9,2509.8,4.78125]
[1727810746000,0.04450809,2509.9,2509.8,5.737504]
[1727810746273,0.8287,2510.3,2510.0,4.78084]
[1727810746550,0.8287,2510.3,2509.8,5.737404]
[1727810746551,0.04468101,2510.2,2509.8,0.956254]
[1727810746701,0.04468101,2510.2,2509.9,4.78095]
[1727810746902,24.18659897,2510.5,2510.0,5.3545504]
[1727810747149,24.18659897,2510.5,2510.1,4.78065]
[1727810747150,0.04476687,2510.4,2510.1,4.78065]
[1727810747353,0.04476687,2510.4,2509.8,0.956254]
[1727810747510,0.04476687,2510.4,2509.8,8.737414]
[1727810747511,4.82501687,2510.4,2509.8,8.737414]
[1727810747711,4.78032,2510.3,2509.8,4.78116]
[1727810747944,0.04513467,2510.2,2509.8,4.78116]
[1727810748248,19.45174364,2510.2,2509.8,4.78109]
[1727810748545,0.04513904,2510.1,2510.0,4.78068]
[1727810749104,19.40660897,2510.2,2509.9,5.57964]
[1727810749329,19.40660897,2510.2,2509.9,5.57955]
[1727810749538,19.40660897,2510.2,2509.9,4.78095]
[1727810749705,19.40660897,2510.2,2509.8,0.478109]
[1727810749706,0.04502012,2510.1,2509.7,4.78135]
[1727810749906,0.04502012,2510.1,2509.9,4.78102]
[1727810750124,0.04502012,2510.1,2510.0,4.78087]
[1727810750804,19.40660897,2510.2,2510.1,4.78068]
[1727810752015,4.78006,2510.5,2510.0,4.78085]
[1727810752226,0.8296,2510.7,2510.1,4.78066]
[1727810752746,0.8296,2510.7,2510.2,4.78039]
[1727810752951,5.60918,2510.7,2510.1,10.039296]
[1727810753159,5.7023775,2511.0,2510.5,4.77989]
[1727810753447,5.7024975,2511.0,2510.5,0.477989]
[1727810753650,4.77946,2510.8,2510.2,4.78045]
[1727810753957,0.9234075,2511.0,2510.1,5.54124]
[1727810754113,0.9234075,2511.0,2509.8,4.78121]
[1727810754114,0.7949,2510.5,2510.0,4.78076]
[1727810754309,0.7949,2510.5,2509.8,0.8024]
[1727810754310,0.7949,2510.5,2510.1,9.56105]
[1727810754549,0.7949,2510.5,2510.1,4.78052]
[1727810755431,0.7949,2510.5,2510.1,9.56109]
[1727810755645,0.7949,2510.5,2508.1,1.034927]
[1727810755646,7.06252401,2510.4,2509.2,0.7716]
[1727810755849,4.78061,2510.2,2509.7,4.78143]
[1727810756048,0.7679,2510.3,2509.4,4.78191]
[1727810756261,5.53317,2509.9,2509.4,4.78191]
[1727810756462,0.7521,2509.9,2509.4,4.78191]
[1727810756690,4.78136,2509.8,2509.2,4.78227]
[1727810756814,24.18796897,2509.8,2509.2,9.56454]
[1727810757019,28.96933897,2509.8,2509.2,4.78227]
[1727810757268,4.7815,2509.7,2509.2,4.78227]
[1727810757760,24.18796897,2509.8,2509.2,4.78227]
[1727810757916,26.68197587,2509.8,2509.4,4.782]
[1727810758121,26.68197587,2509.8,2509.2,9.56452]
[1727810758356,21.90061587,2509.8,2509.0,4.78267]
[1727810758532,7.04685159,2509.7,2509.0,4.78267]
[1727810758730,7.04685159,2509.7,2508.8,4.78304]
[1727810758731,4.78215,2509.4,2508.8,4.78304]
[1727810758939,4.78222,2509.3,2508.8,4.78304]
[1727810759131,4.78215,2509.4,2508.8,4.78303]
[1727810759362,4.78215,2509.4,2508.9,4.78293]
[1727810759862,5.53496,2509.5,2509.0,4.78276]
[1727810760284,4.78222,2509.3,2508.6,4.78344]
[1727810760562,0.8097,2509.2,2508.7,4.78325]
[1727810760874,0.8097,2509.2,2508.2,4.78428]
[1727810760875,19.40660897,2509.3,2509.1,4.78259]
[1727810761083,19.40660897,2509.3,2509.1,4.78257]
[1727810761520,0.04051477,2509.2,2509.1,9.56494]
[1727810761721,19.40660897,2509.3,2508.6,4.78349]
[1727810761922,0.778,2509.1,2508.6,4.78336]
[1727810762168,0.04043952,2509.0,2508.4,4.78379]
[1727810762461,4.82331952,2509.0,2508.5,4.78373]
[1727810762670,4.82331952,2509.0,2508.2,4.7842]
[1727810762671,19.40660897,2508.9,2508.2,4.7842]
[1727810762821,0.8252,2508.7,2508.3,4.78405]
[1727810763021,0.8252,2508.7,2508.0,9.56921]
[1727810763257,0.04037282,2508.6,2508.4,4.78375]
[1727810763456,0.04037282,2508.6,2508.5,4.78373]
[1727810763829,16.9311,2509.9,2508.4,4.78375]
[1727810763830,19.40660897,2509.5,2508.6,4.78351]
[1727810763974,0.7904,2509.3,2508.9,4.7828]
[1727810764310,0.7728,2510.2,2509.5,0.7648]
[1727810764481,0.7728,2510.2,2509.7,4.78128]
[1727810764482,5.55333,2510.2,2509.7,4.78128]
[1727810764808,5.55333,2510.2,2509.7,4.78144]
[1727810765217,5.55333,2510.2,2509.7,4.78135]
[1727810765218,5.55332,2510.2,2509.7,4.78135]
[1727810765717,5.55332,2510.2,2509.8,4.78123]
[1727810765718,0.7728,2510.2,2509.8,4.78123]
[1727810766485,4.781,2510.0,2509.4,4.78186]
[1727810766710,4.781,2510.0,2509.5,4.7817]
[1727810766911,4.78098,2510.0,2509.5,4.7817]
[1727810767531,4.78098,2510.0,2509.3,4.78206]
[1727810767735,0.7981,2509.8,2509.4,4.78201]
[1727810768026,4.78161,2509.7,2509.2,4.78239]
[1727810768337,0.7981,2509.8,2509.1,4.78253]
[1727810768494,0.7981,2509.8,2508.1,5.15527281]
[1727810768495,4.78192,2509.5,2509.0,4.78269]
[1727810768691,0.55,2509.7,2508.8,4.78314]
[1727810768692,5.53442,2509.4,2508.8,4.78314]
[1727810768913,4.78249,2509.2,2508.7,4.78325]
[1727810769105,4.78249,2509.2,2508.3,0.7583]
[1727810769106,0.55,2509.2,2508.9,4.78287]
[1727810769535,10.31671,2509.4,2508.8,4.78301]
[1727810769536,5.33222,2509.3,2508.8,9.56607]
[1727810769740,5.33222,2509.3,2508.3,0.7583]
[1727810769741,0.55,2509.0,2508.0,0.7596]
[1727810769892,5.33279,2509.0,2508.5,4.78356]
[1727810770091,5.33279,2509.0,2508.4,4.7838]
[1727810770288,5.33279,2509.0,2508.4,4.78375]
[1727810770592,4.78299,2508.9,2508.4,4.78375]
[1727810770900,7.8831199,2509.0,2508.5,4.78372]
[1727810771102,4.7831,2508.9,2508.2,4.78424]
[1727810771304,4.7831,2508.9,2508.3,4.78397]
[1727810771305,0.55,2508.8,2508.3,4.78397]
[1727810771505,0.55,2508.8,2508.5,4.78372]
[1727810771731,5.333,2508.9,2508.3,9.56795]
[1727810771892,7.5182535,2508.9,2508.4,4.7838]
[1727810772323,7.5182535,2508.9,2508.3,4.78397]
[1727810772495,7.3331099,2509.0,2508.4,9.56761]
[1727810772706,2.5503299,2509.0,2508.5,4.7837]
[1727810773132,2.5503299,2509.0,2508.6,4.78352]
[1727810773350,24.95317897,2509.1,2508.4,4.78379]
[1727810773351,0.7639,2509.1,2508.4,4.78392]
[1727810773632,0.7639,2509.1,2508.1,5.74462401]
[1727810773633,0.7639,2509.1,2508.8,4.78313]
[1727810774593,0.7639,2509.1,2508.7,4.78322]
[1727810775916,4.783,2508.9,2508.4,4.78382]
[1727810776102,4.7834,2508.7,2508.1,4.78436]
[1727810776315,4.7834,2508.7,2508.2,4.78429]
[1727810776640,6.14311,2508.8,2508.3,4.78406]
[1727810776953,4.78247,2509.2,2507.8,7.78505]
[1727810776954,0.8098,2509.1,2508.9,4.7828]
[1727810777244,10.38,2509.9,2509.3,4.7821]
[1727810777245,0.8098,2509.5,2509.3,4.7821]
[1727810777392,0.8098,2510.1,2509.4,4.78201]
[1727810777596,0.8098,2510.6,2510.3,4.78019]
[1727810777822,0.1242075,2511.0,2510.4,5.21366753]
[1727810777823,0.8098,2510.9,2510.4,5.21366753]
[1727810777995,4.77946,2510.8,2510.0,4.78078]
[1727810778204,0.8098,2510.9,2510.2,4.7803]
[1727810778404,4.77949,2510.8,2510.2,4.7803]
[1727810778801,0.8098,2510.9,2510.4,4.77998]
[1727810779132,1.38110275,2510.9,2510.4,4.77998]
[1727810779317,0.8098,2510.9,2510.4,9.55998]
[1727810779520,0.8098,2510.9,2510.4,4.77998]
[1727810780034,4.9031875,2511.0,2510.4,4.78001]
[1727810780447,4.77918,2510.9,2510.4,4.78001]
[1727810780735,5.74741675,2510.9,2510.2,4.78043]
[1727810780946,5.74741675,2510.9,2510.2,4.78038]
[1727810781142,5.74741675,2510.9,2510.3,4.78018]
[1727810781292,5.74741675,2510.9,2510.4,9.55998]
[1727810781293,0.96823675,2510.9,2510.4,9.55998]
[1727810781738,0.1242075,2511.0,2510.4,4.77998]
[1727810782034,0.1242075,2511.0,2510.5,4.77987]
[1727810782539,0.1242075,2511.0,2510.4,4.77998]
[1727810782735,0.1242075,2511.0,2510.5,4.77975]
[1727810782899,0.7762,2510.9,2510.4,4.77998]
[1727810783898,0.7762,2510.9,2510.2,4.78038]
[1727810784128,0.7762,2510.9,2510.4,4.78007]
[1727810784329,4.77935,2510.8,2510.2,10.038808]
[1727810784547,4.77935,2510.8,2510.1,4.78068]
[1727810784836,4.77935,2510.8,2510.2,4.78046]
[1727810785440,4.77966,2510.7,2510.2,4.78038]
[1727810785645,4.77988,2510.6,2510.1,4.78058]
[1727810785931,1.19126285,2510.7,2510.2,4.78047]
[1727810786094,4.77952,2510.8,2510.2,4.78047]
[1727810786534,4.77974,2510.6,2510.1,4.78058]
[1727810786717,4.77952,2510.8,2510.2,4.78039]
[1727810786924,4.77955,2510.7,2510.2,4.78039]
[1727810787127,4.77952,2510.8,2510.1,4.78058]
[1727810787301,4.77982,2510.6,2509.9,4.781]
[1727810787504,0.555572,2510.7,2510.3,4.78029]
[1727810787726,28.96552897,2510.8,2510.3,4.78029]
[1727810787968,4.77956,2510.7,2510.2,4.78048]
[1727810788235,4.77956,2510.7,2510.1,4.78067]
[1727810788441,4.77984,2510.6,2510.1,4.78067]
[1727810788750,4.77984,2510.6,2509.5,4.78168]
[1727810788751,0.767,2510.3,2509.5,4.78168]
[1727810789036,4.78063,2510.2,2509.6,4.78158]
[1727810789247,4.78128,2509.8,2508.9,5.26112]
[1727810789534,4.78165,2509.6,2509.1,4.78248]
[1727810789707,4.78165,2509.6,2508.9,5.26112]
[1727810790105,4.78175,2509.6,2508.9,5.26111]
[1727810790273,4.78175,2509.6,2509.0,4.78263]
[1727810790475,0.7983,2509.7,2509.3,4.78216]
[1727810790835,0.7983,2509.7,2509.0,4.78265]
[1727810790836,5.57975,2509.7,2509.0,4.78265]
[1727810791030,4.78164,2509.6,2509.1,4.78258]
[1727810791572,4.78213,2509.4,2508.8,9.56609]
[1727810791778,0.7593,2509.3,2508.8,9.5661]
[1727810792075,0.7593,2509.3,2508.9,4.78293]
[1727810792580,0.7593,2509.3,2508.8,4.78304]
[1727810792581,5.54152,2509.3,2508.8,4.78304]
[1727810792776,5.54152,2509.3,2508.7,4.78334]
[1727810792777,4.78242,2509.2,2508.7,4.78334]
[1727810792937,4.78242,2509.2,2508.6,4.78345]
[1727810793136,0.7593,2509.3,2508.8,4.78297]
[1727810793331,0.7593,2509.3,2508.9,4.78281]
[1727810793865,0.7593,2509.3,2508.8,4.78297]
[1727810794039,0.7593,2509.3,2508.9,4.78296]
[1727810795173,0.7593,2509.3,2508.8,4.78315]
[1727810795174,5.54152,2509.3,2508.8,4.78315]
[1727810797583,5.54152,2509.3,2508.9,4.78296]
[1727810797791,20.15780897,2509.6,2509.2,4.78226]
[1727810797942,24.93958897,2509.6,2509.0,4.78265]
[1727810798142,24.93958897,2509.6,2509.1,4.78257]
[1727810798379,4.78183,2509.5,2509.1,4.78257]
[1727810798684,24.93946897,2509.6,2509.1,4.78257]
[1727810799060,20.15780897,2509.6,2509.2,4.78226]
[1727810799359,20.15780897,2509.6,2509.1,4.78257]
[1727810799560,24.93946897,2509.6,2509.1,4.78257]
[1727810799768,4.78184,2509.5,2509.0,9.56532]
[1727810799985,22.65173587,2509.6,2509.1,0.04643911]
[1727810799986,19.40660897,2509.6,2509.1,0.04643911]
[1727810800177,0.7897,2510.0,2509.6,4.78161]
[1727810800381,24.18701897,2510.3,2509.8,4.78125]
[1727810800382,0.7897,2510.3,2509.8,4.78125]
[1727810800683,0.7897,2510.3,2509.9,4.78091]
[1727810800856,0.7897,2510.3,2509.8,4.78115]
[1727810801055,0.7897,2510.3,2509.9,4.78095]
[1727810802190,5.57003,2510.3,2509.8,9.5623]
[1727810802871,5.57003,2510.3,2509.8,4.78115]
[1727810803183,5.57003,2510.3,2509.6,4.7815]
[1727810803394,8.83630214,2510.3,2509.4,5.59318]
[1727810803556,4.78097,2510.0,2509.4,4.78188]
[1727810803758,4.78068,2510.1,2509.6,4.78162]
[1727810804085,4.78109,2509.9,2509.4,4.78188]
[1727810804287,4.78109,2509.9,2509.5,4.78182]
[1727810804580,4.78109,2509.9,2509.3,4.78213]
[1727810804581,4.78126,2509.8,2509.3,4.78213]
[1727810804791,9.56269,2509.8,2509.3,4.7822]
[1727810805285,4.78165,2509.6,2509.2,4.78226]
[1727810805448,0.956178,2509.9,2509.0,4.78272]
[1727810805657,4.78184,2509.5,2509.0,9.5654]
[1727810805957,4.78156,2509.7,2509.0,1.33501]
[1727810806186,24.18787897,2509.8,2509.3,4.78214]
[1727810806343,24.94257897,2509.8,2509.3,4.78214]
[1727810806547,4.78146,2509.7,2509.2,4.78224]
[1727810806764,4.78192,2509.5,2509.0,9.56533]
[1727810807286,4.78192,2509.5,2509.0,9.56534]
[1727810807484,4.78192,2509.5,2509.0,4.78265]
[1727810807671,4.78192,2509.5,2508.9,4.78296]
[1727810807672,0.7547,2509.3,2508.9,4.78296]
[1727810807880,4.78255,2509.2,2508.4,4.78381]
[1727810808053,4.78255,2509.2,2508.5,4.78368]
[1727810808054,0.8102,2508.9,2508.5,4.78368]
[1727810808249,0.8102,2508.9,2508.1,0.7684]
[1727810808250,0.8102,2508.9,2508.7,4.7833]
[1727810808454,0.8102,2508.9,2508.6,4.78353]
[1727810808756,0.8102,2508.9,2508.5,9.5672]
[1727810808967,0.8102,2508.9,2508.1,0.7684]
[1727810809175,0.7691,2509.2,2508.8,4.78316]
[1727810809548,0.7691,2509.2,2508.9,4.78293]
[1727810809769,19.40660897,2509.3,2509.1,4.78258]
[1727810810346,19.40660897,2509.3,2508.9,4.78293]
[1727810810552,19.40660897,2509.3,2508.7,4.7832]
[1727810810778,5.60253,2509.2,2508.5,4.78362]
[1727810810952,5.6019,2509.5,2508.6,0.8254]
[1727810811290,5.6019,2509.5,2508.9,4.7829]
[1727810811291,4.78213,2509.4,2508.9,4.7829]
[1727810811490,9.56431,2509.4,2508.9,4.7829]
[1727810811678,4.78213,2509.4,2508.9,4.7829]
[1727810812708,4.78222,2509.3,2508.9,4.7829]
[1727810813422,4.78211,2509.4,2508.9,4.7829]
[1727810813423,9.56424,2509.4,2508.9,4.7829]
[1727810814398,4.78211,2509.4,2508.9,4.7829]
[1727810814612,9.56425,2509.4,2508.9,4.7829]
[1727810815204,4.78223,2509.3,2508.9,4.7829]
[1727810815363,4.78241,2509.2,2508.8,4.78309]
[1727810815563,4.78223,2509.3,2508.8,4.78309]
[1727810815768,0.82,2509.5,2509.1,4.78249]
[1727810816018,0.7774,2509.8,2509.4,4.78192]
[1727810816208,0.7774,2509.8,2509.5,4.78165]
[1727810816418,0.7774,2509.8,2509.4,4.78199]
[1727810816713,5.55866,2509.8,2509.4,4.78199]
[1727810816885,10.34009,2509.8,2509.2,4.78221]
[1727810817229,4.78164,2509.6,2508.9,0.7608]
[1727810817514,4.78154,2509.7,2509.2,4.78224]
[1727810817672,4.78154,2509.7,2509.1,4.78251]
[1727810818077,4.78154,2509.7,2509.3,4.78219]
[1727810819395,0.7874,2509.4,2508.9,4.78284]
[1727810819596,0.7874,2509.4,2509.1,4.78257]
[1727810820314,0.7874,2509.4,2509.1,4.78247]
[1727810821508,5.54166,2509.6,2509.1,4.78247]
[1727810821710,4.78202,2509.4,2509.0,5.261034]
[1727810821919,0.76,2509.6,2509.1,0.07970839]
[1727810822211,20.16660897,2509.9,2509.6,4.78154]
[1727810823589,20.16660897,2509.9,2509.4,4.78191]
[1727810823883,20.16660897,2509.9,2509.5,4.78172]
[1727810824516,24.94767897,2509.9,2509.5,4.78172]
[1727810824728,24.94767897,2509.9,2509.2,4.78226]
[1727810824729,4.78155,2509.7,2509.2,4.78226]
[1727810824885,4.78155,2509.7,2509.1,4.78256]
[1727810825070,4.78166,2509.6,2509.2,4.78236]
[1727810825273,4.78166,2509.6,2509.1,4.78256]
[1727810825988,4.78183,2509.5,2509.1,4.78256]
[1727810826186,4.78183,2509.5,2508.9,4.78282]
[1727810826187,5.53571,2509.4,2508.9,9.56562]
[1727810826504,0.7536,2509.4,2509.1,4.78249]
[1727810826810,0.7536,2509.4,2509.0,9.56531]
[1727810827019,5.53563,2509.4,2509.0,4.78265]
[1727810827318,0.7536,2509.4,2509.0,9.56533]
[1727810827631,0.7536,2509.4,2509.0,4.78265]
[1727810828001,0.7536,2509.4,2509.0,9.56532]
[1727810828203,0.7536,2509.4,2509.0,9.56534]
[1727810828597,0.7536,2509.4,2509.0,4.78265]
[1727810828816,0.7536,2509.4,2509.1,4.78257]
[1727810830197,5.53565,2509.4,2509.0,4.78274]
[1727810830793,5.53565,2509.4,2508.9,4.78295]
[1727810830794,4.78225,2509.3,2508.8,4.78303]
[1727810830995,4.78248,2509.2,2508.8,4.78303]
[1727810831296,5.53574,2509.4,2508.9,4.78288]
[1727810831710,4.78223,2509.3,2508.9,4.78288]
[1727810832237,4.78223,2509.3,2508.9,4.78287]
[1727810832441,5.814087,2509.3,2508.7,4.7832]
[1727810832591,5.814087,2509.3,2508.5,5.6132]
[1727810832592,4.78269,2509.1,2508.6,4.78339]
[1727810832792,0.8021,2509.0,2508.6,4.78339]
[1727810833107,21.24520597,2509.3,2508.9,4.78297]
[1727810833323,21.24520597,2509.3,2508.8,4.78313]
[1727810833324,7.0780935,2509.2,2508.8,4.78313]
[1727810833525,2.2956935,2509.2,2508.9,4.78287]
[1727810833694,2.2956935,2509.2,2508.6,4.78342]
[1727810833890,7.0781235,2509.2,2508.8,4.78306]
[1727810834747,7.2773979,2509.1,2508.4,4.78379]
[1727810834904,4.78298,2508.9,2508.4,4.78379]
[1727810835114,0.8247,2509.0,2508.5,4.78372]
[1727810835316,4.78297,2508.9,2508.3,4.78398]
[1727810835516,4.78297,2508.9,2508.5,4.78369]